bitfinex/quotes_ETHUSD_20250623
["timestamp","ask_amount","ask_price","bid_price","bid_amount"]
[1750683329421,2.4629,2265.3,2264.7,7.7267865]
[1750683329748,2.4629,2265.3,2264.9,6.9535865]
[1750683330530,9.8139,2265.3,2264.6,6.9535865]
[1750683330730,7.76,2265.2,2264.8,6.9535865]
[1750683334647,7.76,2265.2,2265.0,6.9535865]
[1750683335424,17.5739,2265.3,2265.0,6.9535865]
[1750683335625,19.33129,2265.3,2265.0,6.9535865]
[1750683335826,19.33129,2265.3,2264.8,7.7302865]
[1750683336431,17.5739,2265.3,2265.0,6.9535865]
[1750683336927,17.5739,2265.3,2264.8,7.7302865]
[1750683338027,17.5739,2265.3,2265.0,6.9535865]
[1750683339931,17.5739,2265.3,2264.8,6.9535865]
[1750683342241,8.2719,2265.3,2264.8,6.9535865]
[1750683342445,8.2719,2265.3,2265.0,6.9535865]
[1750683344686,8.2719,2265.3,2264.9,0.43306042]
[1750683344852,8.2719,2265.3,2264.8,6.9535865]
[1750683345256,7.76,2265.3,2265.2,6.9535865]
[1750683345446,7.76,2265.5,2265.2,6.9535865]
[1750683345649,7.76,2265.5,2265.4,6.9535865]
[1750683345975,7.76,2265.5,2265.4,7.7121865]
[1750683346176,7.76,2265.5,2265.4,0.7586]
[1750683346504,1.95,2266.1,2265.7,0.7586]
[1750683346703,7.76,2266.2,2266.0,6.9535865]
[1750683347087,7.76,2266.2,2266.0,7.39120033]
[1750683347886,7.76,2266.2,2266.1,0.7724]
[1750683348110,7.76,2266.2,2266.0,7.39120033]
[1750683348265,0.5119,2266.1,2265.3,0.7724]
[1750683348465,7.76,2266.2,2265.9,6.9535865]
[1750683348804,10.61,2266.9,2266.2,0.7724]
[1750683348805,10.2189,2266.8,2266.2,0.7724]
[1750683349011,10.2189,2266.8,2266.4,6.9535865]
[1750683349309,10.2189,2266.8,2266.5,10.0]
[1750683349486,10.2189,2266.8,2266.4,6.9535865]
[1750683350471,17.5649,2266.8,2266.4,6.9535865]
[1750683350684,20.38239,2266.8,2266.4,6.9535865]
[1750683350898,11.08939,2266.8,2266.4,6.9535865]
[1750683351407,11.08939,2266.8,2266.1,10.0]
[1750683351621,11.08939,2266.8,2266.1,16.9535865]
[1750683352706,11.08939,2266.8,2266.1,6.9535865]
[1750683352909,3.099239,2266.7,2266.1,6.9535865]
[1750683353115,0.5119,2266.5,2265.8,0.7902]
[1750683353292,0.5119,2266.3,2265.6,6.9535865]
[1750683353486,7.344,2266.2,2265.6,6.9535865]
[1750683353700,7.344,2266.2,2265.8,6.9535865]
[1750683354274,8.2719,2266.3,2266.0,6.9535865]
[1750683354514,17.5629,2266.3,2266.0,6.9535865]
[1750683354724,0.5119,2266.7,2266.2,6.9535865]
[1750683355013,8.2719,2266.7,2266.2,6.9535865]
[1750683356438,8.2719,2266.7,2266.3,10.0]
[1750683358011,8.2719,2266.7,2266.2,6.9535865]
[1750683358012,0.5119,2266.6,2265.8,7.7546865]
[1750683358216,0.55,2266.5,2265.9,10.0]
[1750683358413,7.343,2266.4,2265.9,10.0]
[1750683358638,1.947,2266.3,2265.9,10.0]
[1750683358839,1.947,2266.3,2266.1,10.0]
[1750683360240,1.947,2266.3,2266.0,6.9535865]
[1750683360541,1.947,2266.3,2266.0,8.72905515]
[1750683360745,0.5119,2266.2,2265.5,6.9535865]
[1750683360907,8.2719,2266.2,2265.9,6.9535865]
[1750683361108,8.2719,2266.2,2265.4,0.769]
[1750683361109,1.947,2266.1,2265.4,0.769]
[1750683361351,1.947,2266.1,2265.4,7.7225865]
[1750683362449,1.947,2266.1,2265.6,6.9535865]
[1750683364958,9.707,2266.1,2265.6,6.9535865]
[1750683365656,9.707,2266.1,2265.8,6.9535865]
[1750683365857,7.76,2266.1,2265.8,6.9535865]
[1750683366020,7.76,2266.1,2266.0,6.9535865]
[1750683366225,8.2719,2266.2,2266.0,6.9535865]
[1750683366526,7.76,2266.2,2266.0,6.9535865]
[1750683368874,8.2719,2266.2,2266.0,6.9535865]
[1750683369737,8.2719,2266.2,2265.8,0.7831]
[1750683369738,8.2719,2266.2,2265.8,6.9535865]
[1750683370438,8.2719,2266.2,2265.6,10.19158237]
[1750683370634,8.2719,2266.2,2265.7,1.09939824]
[1750683371376,8.2719,2266.2,2265.6,10.19158237]
[1750683373173,7.8519,2266.1,2265.3,11.39367654]
[1750683373465,0.5119,2266.0,2265.3,10.94408237]
[1750683373669,1.947,2265.9,2265.2,10.19158237]
[1750683373848,0.5119,2265.8,2265.2,10.19158237]
[1750683374051,0.5119,2265.8,2265.3,1.01915824]
[1750683374253,7.34,2265.7,2265.3,1.01915824]
[1750683374836,7.34,2265.7,2265.0,10.8024]
[1750683375372,9.286,2265.6,2265.2,10.19158237]
[1750683377281,9.283,2265.7,2265.2,10.19158237]
[1750683377769,9.283,2265.7,2265.0,11.24391251]
[1750683378068,0.5119,2265.6,2265.0,11.24391251]
[1750683378249,0.5119,2265.6,2265.1,2.14354949]
[1750683381166,8.2719,2265.6,2265.0,0.44151251]
[1750683381478,0.5119,2265.5,2264.6,10.19158237]
[1750683381661,0.5119,2265.5,2264.7,10.0]
[1750683383346,0.55,2265.4,2264.7,10.0]
[1750683383590,0.5119,2265.3,2264.7,10.0]
[1750683383785,1.944,2265.2,2264.7,10.0]
[1750683384880,1.944,2265.2,2264.6,10.6290401]
[1750683385082,7.8509,2265.1,2264.6,0.43745773]
[1750683385380,7.8509,2265.1,2264.5,10.0]
[1750683385948,7.8509,2265.1,2264.5,10.4488174]
[1750683386258,7.8509,2265.1,2264.5,12.80528776]
[1750683386645,0.5119,2265.1,2264.5,12.80528776]
[1750683386860,1.944,2265.0,2264.6,0.8143]
[1750683387646,1.944,2265.0,2264.5,12.80528776]
[1750683390860,1.944,2265.0,2264.7,10.19158237]
[1750683391100,1.944,2265.0,2264.7,12.49126938]
[1750683391681,8.2719,2265.1,2264.7,12.49126938]
[1750683391991,1.944,2265.0,2264.7,12.49126938]
[1750683392294,1.944,2265.0,2264.9,6.9550519]
[1750683393298,1.944,2265.0,2264.9,16.9538519]
[1750683394794,8.2719,2265.1,2265.0,10.0]
[1750683394980,10.2159,2265.1,2265.0,10.0]
[1750683395382,10.2159,2265.1,2264.9,6.9538519]
[1750683396116,9.704,2265.1,2264.9,6.9538519]
[1750683396403,0.5119,2265.6,2264.9,7.87920579]
[1750683396589,1.944,2265.6,2265.5,6.9550519]
[1750683398688,8.2821949,2267.1,2265.5,6.9550519]
[1750683398689,9.28,2266.1,2265.5,6.9550519]
[1750683398887,7.336,2266.0,2265.8,6.9550519]
[1750683399402,7.8479,2266.0,2265.8,6.9550519]
[1750683399622,8.2719,2266.5,2265.9,0.7605]
[1750683399829,19.44009,2266.5,2266.0,6.9550519]
[1750683400186,9.704,2266.5,2266.3,6.9550519]
[1750683400411,9.704,2266.5,2266.0,20.63836942]
[1750683400608,0.5119,2266.4,2265.5,0.8209]
[1750683400916,9.704,2266.5,2265.0,6.35891803]
[1750683400917,0.5119,2266.0,2265.4,0.45170527]
[1750683401208,9.28,2265.9,2265.0,10.8209]
[1750683401405,9.28,2265.9,2265.1,2.63491712]
[1750683401786,9.28,2265.9,2265.0,11.18945744]
[1750683402476,9.28,2265.9,2265.0,10.8209]
[1750683402803,9.279,2265.8,2265.0,10.8209]
[1750683404498,9.279,2265.8,2265.0,11.25638771]
[1750683405623,0.5119,2265.7,2265.0,11.25638771]
[1750683405775,0.97909,2265.6,2265.0,11.25638771]
[1750683407204,0.5119,2265.7,2265.0,11.25638771]
[1750683408398,0.5119,2266.0,2265.2,10.18781308]
[1750683408621,1.939,2265.8,2265.2,10.18781308]
[1750683409513,1.939,2265.8,2265.3,0.8305]
[1750683410080,1.939,2265.8,2265.0,11.25228771]
[1750683410281,3.69339,2265.8,2265.0,13.93036625]
[1750683410709,1.75439,2265.8,2265.0,13.93036625]
[1750683410892,1.939,2265.8,2265.0,13.93036625]
[1750683412926,0.5119,2265.7,2265.0,13.93036625]
[1750683413284,0.5119,2265.7,2265.2,0.0012]
[1750683416226,0.5119,2265.7,2265.2,10.18901308]
[1750683416822,0.5119,2265.7,2265.2,0.0012]
[1750683418315,2.26619,2265.7,2265.2,0.0012]
[1750683419621,0.5119,2265.6,2265.2,0.0012]
[1750683420328,0.5119,2265.6,2265.2,6.95434541]
[1750683422238,0.5119,2265.6,2265.2,0.0012]
[1750683424923,9.268,2265.5,2265.2,0.0012]
[1750683425094,0.97799,2265.4,2265.2,0.0012]
[1750683425295,8.73799,2265.4,2265.2,0.0012]
[1750683426104,0.5119,2265.3,2265.2,0.0012]
[1750683426800,0.92572692,2265.3,2265.2,0.0012]
[1750683427737,0.5119,2265.3,2265.2,0.0012]
[1750683427942,2.363689,2265.3,2265.2,0.0012]
[1750683429345,9.7799,2265.3,2265.2,0.0012]
[1750683431324,7.76,2265.4,2265.2,6.95434541]
[1750683432116,7.76,2265.4,2265.2,0.0012]
[1750683432463,8.2719,2265.4,2265.2,0.0012]
[1750683432607,8.15519,2265.3,2265.2,0.0012]
[1750683434445,9.21709,2265.3,2265.2,0.0012]
[1750683434615,9.63035882,2265.3,2265.2,0.0012]
[1750683434811,9.6303503,2265.3,2265.2,0.0012]
[1750683435739,9.21709,2265.3,2265.2,0.0012]
[1750683438813,16.97709,2265.3,2265.2,0.0012]
[1750683439411,17.39021152,2265.3,2265.2,0.0012]
[1750683439752,17.39021753,2265.3,2265.2,0.0012]
[1750683439925,17.39014237,2265.3,2265.2,0.0012]
[1750683441253,27.39014237,2265.3,2265.2,0.0012]
[1750683442032,28.44772819,2265.3,2265.2,0.0012]
[1750683442350,28.44783982,2265.3,2265.2,0.0012]
[1750683442525,28.44784388,2265.3,2265.2,0.0012]
[1750683443430,19.64909,2265.3,2265.2,0.0012]
[1750683443620,27.3890286,2265.3,2265.2,0.0012]
[1750683444017,26.97609,2265.3,2265.2,0.0012]
[1750683444650,27.38909979,2265.3,2265.2,0.0012]
[1750683444960,26.97609,2265.3,2265.2,0.0012]
[1750683445464,27.38909713,2265.3,2265.2,0.0012]
[1750683445631,20.06209713,2265.3,2265.2,0.0012]
[1750683445953,29.32409776,2265.3,2265.2,0.0012]
[1750683446171,28.91109,2265.3,2265.2,0.0012]
[1750683446478,30.3812009,2265.3,2265.2,0.0012]
[1750683446835,30.38125163,2265.3,2265.2,0.0012]
[1750683448050,29.96819324,2265.3,2265.2,0.0012]
[1750683448251,30.38122391,2265.3,2265.2,0.0012]
[1750683448620,30.38122148,2265.3,2265.2,0.0012]
[1750683450320,20.56922148,2265.3,2265.2,0.0012]
[1750683450643,29.83022148,2265.3,2265.2,0.0012]
[1750683451045,29.83022547,2265.3,2265.2,0.0012]
[1750683451365,29.96719324,2265.3,2265.2,0.0012]
[1750683451521,30.3802352,2265.3,2265.2,0.0012]
[1750683451858,30.38021562,2265.3,2265.2,0.0012]
[1750683453578,30.38029156,2265.3,2265.2,0.0012]
[1750683454379,30.38029068,2265.3,2265.2,0.0012]
[1750683456060,30.38042666,2265.3,2265.2,0.0012]
[1750683456560,30.3804215,2265.3,2265.2,0.0012]
[1750683457444,30.38044784,2265.3,2265.2,0.0012]
[1750683457673,21.11944679,2265.3,2265.2,0.0012]
[1750683457873,30.37944679,2265.3,2265.2,0.0012]
[1750683458882,21.11955247,2265.3,2265.2,0.0012]
[1750683459072,30.37955247,2265.3,2265.2,0.0012]
[1750683460087,29.96619324,2265.3,2265.2,0.0012]
[1750683460254,30.3795546,2265.3,2265.2,0.0012]
[1750683461157,30.37974988,2265.3,2265.2,0.0012]
[1750683461691,30.37874988,2265.3,2265.2,0.0012]
[1750683461853,30.37874957,2265.3,2265.2,0.0012]
[1750683462486,30.37878054,2265.3,2265.2,0.0012]
[1750683463091,30.37877774,2265.3,2265.2,0.0012]
[1750683463474,30.37895606,2265.3,2265.2,0.0012]
[1750683463694,21.11995606,2265.3,2265.2,0.0012]
[1750683463983,29.86705606,2265.3,2265.2,0.0012]
[1750683464199,19.23086606,2265.3,2265.2,0.0012]
[1750683464405,27.43276282,2265.3,2265.2,0.0012]
[1750683464755,27.43271459,2265.3,2265.2,0.0012]
[1750683465374,27.43267243,2265.3,2265.2,0.0012]
[1750683465891,27.43272281,2265.3,2265.2,0.0012]
[1750683466786,20.10972281,2265.3,2265.2,0.0012]
[1750683466979,27.43172281,2265.3,2265.2,0.0012]
[1750683467494,27.43170898,2265.3,2265.2,0.0012]
[1750683468893,27.43170945,2265.3,2265.2,0.0012]
[1750683469092,30.1748804,2265.3,2265.2,0.0012]
[1750683469691,31.78431677,2265.3,2265.2,0.0012]
[1750683469874,31.78437719,2265.3,2265.2,0.0012]
[1750683470076,31.77837719,2265.3,2265.2,0.0012]
[1750683470387,30.71894082,2265.3,2265.2,0.0012]
[1750683471085,21.46694082,2265.3,2265.2,0.0012]
[1750683471285,31.77739606,2265.3,2265.2,0.0012]
[1750683471652,30.71794886,2265.3,2265.2,0.0012]
[1750683472292,30.71794239,2265.3,2265.2,0.0012]
[1750683472593,30.7179461,2265.3,2265.2,0.0012]
[1750683474498,30.71793244,2265.3,2265.2,0.0012]
[1750683475006,31.77731,2265.3,2265.2,0.0012]
[1750683476119,22.52631,2265.3,2265.2,0.0012]
[1750683476321,31.77631,2265.3,2265.2,0.0012]
[1750683476829,32.28821,2265.3,2265.2,0.0012]
[1750683477456,32.28830476,2265.3,2265.2,0.0012]
[1750683477891,23.03830476,2265.3,2265.2,0.0012]
[1750683478097,32.28730476,2265.3,2265.2,0.0012]
[1750683478292,32.28720156,2265.3,2265.2,0.0012]
[1750683478589,32.28720822,2265.3,2265.2,0.0012]
[1750683479186,32.28720121,2265.3,2265.2,0.0012]
[1750683481297,32.28725045,2265.3,2265.2,0.0012]
[1750683481700,32.28722274,2265.3,2265.2,0.0012]
[1750683483007,32.2871741,2265.3,2265.2,0.0012]
[1750683484368,32.2861741,2265.3,2265.2,0.0012]
[1750683485503,31.7361741,2265.3,2265.2,0.0012]
[1750683486470,23.9072741,2265.3,2265.2,0.0012]
[1750683486782,28.48010315,2265.3,2265.2,0.0012]
[1750683486971,27.42063853,2265.3,2265.2,0.0012]
[1750683488911,20.10463853,2265.3,2265.2,0.0012]
[1750683489083,27.42058296,2265.3,2265.2,0.0012]
[1750683491139,27.42054491,2265.3,2265.2,0.0012]
[1750683491443,27.42054517,2265.3,2265.2,0.0012]
[1750683492520,27.42052129,2265.3,2265.2,0.0012]
[1750683493521,27.007,2265.3,2265.2,0.0012]
[1750683493724,27.42053577,2265.3,2265.2,0.0012]
[1750683494193,27.42053722,2265.3,2265.2,0.0012]
[1750683494524,27.007,2265.3,2265.2,0.0012]
[1750683499215,27.003,2265.3,2265.2,0.0012]
[1750683499928,25.072,2265.3,2265.2,0.0012]
[1750683500149,26.997,2265.3,2265.2,0.0012]
[1750683502555,7.76,2265.3,2265.2,0.7542]
[1750683502703,15.071,2265.3,2265.2,1.52536764]
[1750683502896,7.76,2265.3,2265.2,1.52536764]
[1750683503101,7.76,2265.3,2265.2,7.71167639]
[1750683504003,15.071,2265.4,2265.2,7.71167639]
[1750683504201,15.07,2265.4,2265.2,7.71167639]
[1750683504601,15.07,2265.4,2265.3,0.7742]
[1750683504803,7.76,2265.9,2265.3,6.95747639]
[1750683505014,7.31,2266.0,2265.9,0.8181]
[1750683505615,7.31,2266.0,2265.7,0.8181]
[1750683507062,7.31,2266.0,2265.5,0.833]
[1750683509740,7.31,2266.0,2265.6,6.95747639]
[1750683509938,0.55,2266.3,2265.6,7.77962618]
[1750683510237,9.233,2266.2,2265.7,0.824]
[1750683510639,0.55,2266.3,2265.7,0.824]
[1750683510937,10.0,2266.6,2265.6,7.77962618]
[1750683510938,11.1229,2266.8,2266.2,6.95747639]
[1750683511136,11.1229,2266.8,2266.3,0.8291]
[1750683511137,9.233,2266.7,2266.3,0.8291]
[1750683511323,7.307,2266.6,2266.4,6.95747639]
[1750683511537,9.233,2266.7,2266.5,0.8291]
[1750683511849,10.611,2266.8,2266.5,0.8291]
[1750683511850,19.844,2266.8,2266.5,0.8291]
[1750683515367,10.611,2266.8,2266.5,0.8291]
[1750683515661,9.229,2266.7,2266.5,0.8291]
[1750683515826,9.229,2266.6,2266.5,0.8291]
[1750683516026,10.611,2266.8,2266.5,0.8291]
[1750683516223,9.229,2266.7,2266.5,0.8291]
[1750683517040,10.611,2266.8,2266.5,0.8291]
[1750683517371,7.304,2266.7,2266.5,0.8291]
[1750683517664,7.303,2266.7,2266.5,0.8291]
[1750683518628,1.0619,2267.3,2266.5,0.8291]
[1750683518629,0.55,2267.2,2266.5,0.8291]
[1750683518828,0.5119,2267.5,2266.5,0.8291]
[1750683518829,0.55,2267.4,2266.5,0.8291]
[1750683519047,0.55,2267.2,2266.5,0.8291]
[1750683519261,16.987,2267.3,2266.5,0.8291]
[1750683519466,10.0,2267.2,2266.5,0.8291]
[1750683519828,9.227,2267.1,2266.5,0.8291]
[1750683521450,7.301,2267.0,2266.7,0.768]
[1750683521642,7.301,2267.0,2266.9,0.7572]
[1750683523672,1.925,2267.1,2266.9,0.7572]
[1750683523876,9.226,2267.1,2266.9,0.7572]
[1750683524670,9.226,2267.1,2266.7,1.21498213]
[1750683524868,19.1965,2267.1,2266.5,0.7709]
[1750683525057,8.2719,2267.1,2266.5,0.7709]
[1750683525259,9.224,2267.0,2266.5,0.7709]
[1750683525852,9.224,2266.9,2266.6,0.7709]
[1750683526050,7.76,2267.1,2266.6,1.20244248]
[1750683526051,9.224,2267.0,2266.6,1.20244248]
[1750683526360,9.224,2267.0,2266.7,1.13914304]
[1750683527482,9.224,2267.0,2266.6,1.20244248]
[1750683527989,9.224,2267.0,2266.6,0.7709]
[1750683531791,9.216,2266.9,2266.6,0.7709]
[1750683532655,9.216,2266.8,2266.6,0.7709]
[1750683534159,7.296,2266.8,2266.6,0.7709]
[1750683534556,7.76,2267.1,2266.6,0.7709]
[1750683534753,9.215,2267.0,2266.6,1.58628552]
[1750683534991,9.215,2267.0,2266.7,6.94492323]
[1750683535376,7.296,2267.0,2266.8,0.8116]
[1750683536166,15.055,2267.1,2266.8,0.8116]
[1750683536394,15.055,2267.1,2266.8,1.66879088]
[1750683537105,7.76,2267.1,2266.9,6.94492323]
[1750683537336,1.919,2267.5,2267.0,0.7725]
[1750683537615,1.919,2267.5,2267.4,0.7725]
[1750683537761,10.0,2267.7,2267.4,0.7725]
[1750683537966,10.606,2267.8,2267.5,6.94492323]
[1750683538207,17.901,2267.8,2267.5,6.94492323]
[1750683538391,17.901,2267.8,2267.4,1.54424232]
[1750683540675,1.0619,2267.6,2266.9,0.8241]
[1750683541017,9.212,2267.5,2266.9,7.76902323]
[1750683541511,10.0,2267.7,2267.2,0.7897]
[1750683541822,9.212,2267.5,2267.2,0.7897]
[1750683541966,9.212,2267.5,2267.3,0.77346232]
[1750683542162,9.212,2267.5,2267.2,0.7897]
[1750683543494,9.212,2267.5,2266.7,0.818]
[1750683543697,9.212,2267.5,2266.8,6.94492323]
[1750683544193,9.212,2267.5,2267.0,6.94492323]
[1750683544390,9.211,2267.4,2267.1,0.8327]
[1750683544583,9.211,2267.4,2267.2,0.77776232]
[1750683544786,10.0,2267.7,2267.2,7.72268555]
[1750683544987,7.292,2267.4,2267.2,6.94492323]
[1750683546720,7.292,2267.4,2267.1,0.8327]
[1750683547513,1.919,2267.5,2267.1,0.8327]
[1750683547889,9.21,2267.5,2267.1,0.8327]
[1750683548430,0.5119,2268.6,2267.5,0.829]
[1750683548595,0.5119,2268.4,2267.6,0.829]
[1750683548922,10.5119,2268.4,2267.6,0.829]
[1750683549489,0.55,2268.3,2267.6,0.829]
[1750683549725,10.5119,2268.4,2267.6,0.829]
[1750683550133,9.209,2268.3,2267.6,0.829]
[1750683550440,9.209,2268.3,2267.7,7.72231555]
[1750683550599,10.5119,2268.4,2267.7,7.72231555]
[1750683550802,9.209,2268.3,2267.7,7.72231555]
[1750683551014,10.5119,2268.4,2267.7,7.72231555]
[1750683551237,9.208,2268.2,2267.7,8.16882495]
[1750683551424,1.919,2268.1,2267.9,6.94492323]
[1750683551799,10.5119,2268.4,2267.9,6.94492323]
[1750683552006,7.06892323,2268.9,2267.8,0.8997825]
[1750683552007,0.124,2268.9,2268.4,0.793]
[1750683552248,0.124,2268.9,2268.6,6.94492323]
[1750683552427,0.124,2268.9,2268.8,0.793]
[1750683553044,0.124,2268.9,2268.8,7.73792323]
[1750683553344,0.124,2268.9,2268.8,0.7641]
[1750683554507,0.124,2268.9,2268.8,5.17171636]
[1750683554711,0.124,2268.9,2268.8,0.7641]
[1750683554908,0.2247989,2269.0,2268.9,5.20872209]
[1750683555345,1.918,2269.8,2269.5,0.8013]
[1750683555653,7.287,2270.2,2269.5,0.8013]
[1750683556011,10.598,2270.6,2269.8,10.16331981]
[1750683556335,10.598,2270.6,2269.5,10.0]
[1750683556336,10.0,2270.5,2269.3,10.7651]
[1750683556536,0.55,2270.2,2269.4,2.72532283]
[1750683556748,9.205,2270.1,2269.3,10.7651]
[1750683556951,0.6358,2270.3,2269.3,0.7651]
[1750683557108,9.205,2270.1,2269.3,0.7651]
[1750683557316,0.55,2270.2,2269.3,10.7651]
[1750683557513,1.918,2270.1,2269.3,10.7651]
[1750683557718,1.918,2270.1,2269.4,2.5335152]
[1750683557958,1.918,2270.4,2269.6,0.7778]
[1750683558257,0.6358,2270.6,2269.8,10.16331981]
[1750683558569,2.5538,2271.0,2270.1,10.16331981]
[1750683558916,2.5538,2271.0,2270.2,0.8034]
[1750683558917,0.6358,2271.0,2270.2,0.8034]
[1750683559120,1.918,2271.3,2270.4,10.16331981]
[1750683559343,1.960002,2272.1,2270.5,0.7636]
[1750683559543,0.6358,2271.3,2270.5,0.7636]
[1750683559742,0.6358,2270.8,2270.0,0.804]
[1750683559944,0.5523,2270.7,2270.0,0.804]
[1750683560143,10.5523,2270.7,2270.0,0.804]
[1750683560314,1.31051,2270.6,2270.0,0.804]
[1750683560717,1.31051,2270.6,2269.7,10.7542]
[1750683560933,0.55,2270.5,2269.7,10.7542]
[1750683561152,8.0098,2270.4,2269.7,0.7542]
[1750683561323,1.917,2270.3,2269.7,0.7542]
[1750683561523,0.99268,2270.2,2269.4,0.8221]
[1750683561735,0.55,2270.1,2269.4,0.8221]
[1750683563121,0.55,2270.1,2269.1,0.8017]
[1750683563423,0.55,2270.1,2269.2,0.36787529]
[1750683563932,10.99268,2270.2,2269.3,10.16331981]
[1750683564131,1.971,2270.1,2269.4,1.42096237]
[1750683564337,1.971,2270.1,2269.5,0.36782666]
[1750683564534,0.99268,2270.2,2269.6,0.7528]
[1750683564855,1.971,2270.5,2269.6,0.7528]
[1750683565064,0.6381,2270.7,2270.0,10.16331981]
[1750683565260,1.971,2270.6,2270.0,10.97031981]
[1750683565462,0.26091,2270.5,2270.0,10.97031981]
[1750683565655,1.971,2270.6,2270.0,10.97031981]
[1750683565852,0.6381,2270.7,2270.0,10.97031981]
[1750683566026,0.0023,2270.7,2270.0,10.97031981]
[1750683566230,0.0023,2270.7,2270.0,0.807]
[1750683566556,0.5523,2270.7,2270.0,0.807]
[1750683566752,0.25223,2270.6,2270.0,0.807]
[1750683567669,1.9723,2270.7,2270.0,0.807]
[1750683568245,0.55,2270.6,2270.0,0.807]
[1750683568468,0.6358,2270.5,2269.6,0.775]
[1750683569658,0.6358,2270.5,2269.6,2.099501]
[1750683571390,0.6358,2270.5,2269.6,12.26282081]
[1750683571539,11.9723,2270.7,2269.7,2.22628208]
[1750683573042,11.9723,2270.7,2269.8,0.7789]
[1750683574044,10.55,2270.6,2269.8,0.7789]
[1750683574250,0.55,2270.6,2269.8,0.7789]
[1750683574885,0.55,2270.4,2269.6,1.324501]
[1750683575054,0.55,2270.4,2269.5,0.7789]
[1750683575770,0.88803,2270.5,2269.5,0.7789]
[1750683575960,9.335,2270.4,2269.5,0.7789]
[1750683578695,0.55,2270.3,2269.5,0.7789]
[1750683578847,0.9885,2270.2,2269.5,0.7789]
[1750683579788,0.55,2270.3,2269.5,0.7789]
[1750683580551,9.335,2270.4,2269.5,0.7789]
[1750683582489,9.335,2270.4,2269.6,1.324506]
[1750683583144,10.38612243,2270.4,2269.6,1.324506]
[1750683583350,0.55,2270.3,2269.5,0.7789]
[1750683583549,1.09361224,2270.2,2269.5,2.103541]
[1750683583785,0.55,2270.1,2269.5,2.103541]
[1750683583952,0.6358,2270.0,2269.5,0.7789]
[1750683584152,1.97,2270.1,2269.5,0.7789]
[1750683587586,1.6057724,2270.0,2269.5,0.7789]
[1750683587753,0.42115724,2269.9,2269.5,0.7789]
[1750683588494,3.0257724,2270.1,2269.5,0.7789]
[1750683588694,1.97,2270.1,2269.5,0.7789]
[1750683589080,11.97,2270.2,2269.5,0.7789]
[1750683589250,1.97,2270.2,2269.5,0.7789]
[1750683589858,0.41260379,2270.1,2269.5,0.7789]
[1750683590062,0.41260999,2270.0,2269.5,0.7789]
[1750683590303,1.97,2270.2,2269.5,0.7789]
[1750683590505,0.41260451,2270.1,2269.5,0.7789]
[1750683590678,0.41262512,2270.0,2269.5,0.7789]
[1750683591004,0.41262512,2269.9,2269.5,0.7789]
[1750683591189,0.41262512,2269.8,2269.5,0.7789]
[1750683591493,0.55,2270.1,2269.5,0.7789]
[1750683591678,0.41259647,2270.0,2269.5,0.7789]
[1750683591857,0.55,2270.1,2269.5,0.7789]
[1750683592056,0.41259532,2270.0,2269.5,0.7789]
[1750683592291,0.55,2270.1,2269.5,1.29744345]
[1750683592597,0.41259336,2270.0,2269.5,0.7789]
[1750683592799,0.55,2270.2,2269.5,0.7789]
[1750683593093,0.41257685,2270.1,2269.5,0.7789]
[1750683593294,0.55,2270.2,2269.5,0.7789]
[1750683593491,0.41257465,2270.1,2269.5,0.7789]
[1750683593791,0.55,2270.2,2269.6,0.51853353]
[1750683593792,0.41257465,2270.0,2269.6,0.51853353]
[1750683593990,0.55,2270.2,2269.6,0.51853353]
[1750683594291,0.41270568,2270.1,2269.5,0.7789]
[1750683594498,0.41270568,2270.0,2269.5,0.7789]
[1750683594672,0.55,2270.2,2269.5,0.7789]
[1750683594877,0.41270763,2270.1,2269.5,4.40625201]
[1750683595193,10.0,2270.3,2269.7,0.7862]
[1750683595391,0.41269855,2270.2,2269.7,0.7862]
[1750683595595,1.964,2270.4,2269.8,0.7862]
[1750683595810,0.41269018,2270.3,2269.8,0.7862]
[1750683595963,0.41269018,2270.2,2269.8,0.7862]
[1750683596163,1.964,2270.4,2269.8,0.7862]
[1750683596510,0.41285206,2270.3,2269.8,2.39354476]
[1750683596814,1.964,2270.4,2269.8,2.39354476]
[1750683596963,0.41283732,2270.3,2269.8,2.39354476]
[1750683597162,0.41283732,2270.2,2269.8,2.39354476]
[1750683597408,1.05609581,2270.5,2269.8,1.60734476]
[1750683597564,0.41283219,2270.4,2269.9,1.39642104]
[1750683597762,0.41283219,2270.3,2269.9,1.39642104]
[1750683598015,0.55,2270.5,2270.0,0.7951]
[1750683598218,0.41281175,2270.4,2270.0,0.7951]
[1750683598369,1.964,2270.6,2270.0,0.7951]
[1750683598563,0.41281796,2270.5,2270.0,1.53602355]
[1750683598789,1.964,2270.6,2270.0,1.53602355]
[1750683599000,0.41279459,2270.5,2270.0,1.53602355]
[1750683599202,1.964,2270.6,2270.0,1.53602355]
[1750683599365,0.41280364,2270.5,2270.0,1.53602355]
[1750683599565,1.964,2270.6,2270.0,1.53602355]
[1750683599805,0.41265962,2270.5,2270.0,1.53602355]
[1750683600101,1.964,2270.6,2270.0,1.53602355]
[1750683600401,0.41267318,2270.5,2270.0,0.7951]
[1750683600597,0.55,2270.3,2270.0,0.7951]
[1750683600764,0.55,2270.3,2269.7,1.324413]
[1750683600765,0.55,2270.1,2269.7,0.7951]
[1750683600968,0.55,2270.4,2269.7,0.7951]
[1750683601205,0.55,2270.2,2269.7,0.7951]
[1750683601360,0.41271965,2270.1,2269.7,0.7951]
[1750683601563,0.41271965,2270.0,2269.7,0.7951]